Cogmind - Beta 13 @@@ ROGUE MODE // 2024.04.01 @ 04:35:52 Player: weedlord420 Result: Core destroyed Performance ------------- Evolutions (0) 0 Regions Visited (0) 0 Robots Destroyed (3) 15 Value Destroyed (21) 21 Prototype IDs (0) 0 Alien Tech Used (0) 0 Bonus (0) 0 TOTAL SCORE: 36 Bonus ------- None Cogmind --------- Core Integrity 0/250 Matter 197/300 Energy 83/100 System Corruption 0% Temperature Cool (0) Movement Core (100) Ox1 Location -11/Scrapyard Parts ------- > --- POWER (1) -------- (None) > --- PROPULSION (2) --- (None) > --- UTILITY (2) ------ Small Storage Unit > --- WEAPON (2) ------- (None) > --- INVENTORY (8) ---- Mining Laser Mining Laser Peak State ------------ > --- POWER ------------ Light Ion Engine > --- PROPULSION ------- Aluminum Leg Aluminum Leg > --- UTILITY ---------- Small Storage Unit > --- WEAPON ----------- EM Pulse Gun Medium Laser > --- INVENTORY -------- Light Ion Engine [Rating: 6] Favorites ----------- Power Light Ion Engine Engine Light Ion Engine Propulsion Aluminum Leg Leg Aluminum Leg Utility Small Storage Unit Storage Small Storage Unit Weapon Mining Laser Energy Gun Medium Laser Special Weapon Mining Laser Build | -11 ------- Run | Yrd Slots Evolved . | . Power . | . Propulsion . | . Utility . | . Weapon . | . Parts Attached 11 | 11 Power 2 | 2 Engine 2 | 2 Core . | . Reactor . | . Propulsion 2 | 2 Treads . | . Leg 2 | 2 Wheel . | . Hover . | . Flight . | . Utility 1 | 1 Device . | . Storage 1 | 1 Processor . | . Hackware . | . Protection . | . Artifact . | . Weapon 6 | 6 Energy Gun 4 | 4 Energy Cannon . | . Ballistic Gun . | . Ballistic Cannon . | . Launcher . | . Special Weapon 2 | 2 Impact Weapon . | . Slashing Weapon . | . Piercing Weapon . | . Special Melee Weapon . | . Unidentified Prototypes . | . Parts Lost 6 | 6 Power 2 | 2 Propulsion 2 | 2 Utility . | . Weapon 2 | 2 Highest Loss Streak 6 | 6 To Critical Strikes . | . Average Slot Usage (%) . | . Naked Turns . | . Heaviest Build 12 | 12 Greatest Support 20 | 20 Greatest Overweight (x) . | . Average Overweight (x) . | . Largest Inventory Capacity 8 | 8 Average Capacity 7 | 7 Most Carried 4 | 4 Average Carried 2 | 2 Final Capacity 8 | 8 Final Carried 2 | 2 Class Distribution -------------------- None Dominant Class ---------------- None Resources | -11 ----------- Run | Yrd Matter Collected 155 | 155 Remotely . | . Salvage Created 79 | 79 Parts 6 | 6 Haulers Intercepted . | . Recyclers Shooed . | . Parts Field Recycled . | . Retrieved Matter . | . Parts Self-Destructed . | . Prevented . | . Kills | -11 ------- Run | Yrd Combat Hostiles Destroyed 2 | 2 Guns 2 | 2 Classes Destroyed 2 | 2 Tunneler 3 | 3 Assembled 2 | 2 Best Kill Streak 2 | 2 Combat Bots Only 2 | 2 Max Kills in Single Turn 1 | 1 Gunslinging . | . Exploded . | . Melee . | . Uniques/NPCs Destroyed . | . Combat | -11 -------- Run | Yrd Hostile Shots Fired 69 | 69 Missed 14 | 14 Damage Taken 816 | 816 Core 256 | 256 Absorbed by Shields . | . Core Remaining (%) . | . Volleys Fired 67 | 67 Largest 2 | 2 Hottest 200 | 200 Shots Fired 121 | 121 Gun 22 | 22 Cannon . | . Launcher . | . Special 99 | 99 Kinetic . | . Thermal 115 | 115 Explosive . | . Electromagnetic 6 | 6 Robot Hit Streak 5 | 5 Robot Miss Streak 5 | 5 Penetration Max . | . Secondary Targets . | . Shots Hit Robots 11 | 11 Core Hits 11 | 11 Critical Kills . | . Critical Parts Destroyed . | . Critical Strikes . | . Melee Attacks . | . Impact . | . Slashing . | . Piercing . | . Sneak Attacks . | . Combat Hostiles . | . Follow-up Attacks . | . Damage Inflicted 209 | 209 Guns 170 | 170 Cannons . | . Explosions . | . Melee . | . Ramming 15 | 15 Kinetic . | . Thermal 149 | 149 Explosive . | . Electromagnetic 45 | 45 Impact . | . Slashing . | . Piercing . | . Highest Corruption . | . Average Corruption . | . Corruption Purged . | . Corruption Blocked . | . Overload Shots . | . Overflow Damage . | . Projectiles . | . Explosions . | . Melee . | . Knockbacks . | . Impact . | . Kinetic . | . Secondary . | . Self-Inflicted Damage 3 | 3 Shots . | . Rammed 4 | 4 Targets Rammed 8 | 8 Kicked 4 | 4 Crushed . | . Highest Temperature 302 | 302 Average Temperature 101 | 101 Received Heat Transfer 80 | 80 Effects 4 | 4 Energy Bleed 2 | 2 Interference 2 | 2 Siege Activations . | . Robots Corrupted . | . Combat Hostiles . | . Parts Fried . | . Impact Corruptions . | . Robots Melted . | . Combat Hostiles . | . Parts Melted 1 | 1 Heat Transferred 420 | 420 Parts Sabotaged . | . Parts Stolen . | . Parts Stripped . | . Power Chain Reactions . | . Alert | -11 ------- Run | Yrd Peak Influence 15 | 15 Initial . | . Average 6 | 6 Maximum Alert Level . | . Low Security (%) 100 | 100 Level 1 . | . Level 2 . | . Level 3 . | . Level 4 . | . Level 5 . | . High Security . | . Max Security . | . Squads Dispatched . | . Investigation . | . Extermination . | . Reinforcement . | . Assault . | . Garrison . | . Intercept . | . Searches Triggered . | . Construction Impeded . | . Haulers Reinforced . | . Active Scanning Responses . | . Cargo Convoy Interrupts . | . Stealth | -11 --------- Run | Yrd Distress Signals . | . Communications Jammed . | . Distress Signals . | . Times Spotted 22 | 22 Peak Tracking Total 20 | 20 Tactical Retreats . | . Traps | -11 ------- Run | Yrd Traps Triggered . | . Indirectly . | . Trap Hack Attempts . | . Triggered . | . Disarmed . | . Reprogrammed . | . Reused . | . Traps Extracted . | . Installed . | . Triggered . | . Machines | -11 ---------- Run | Yrd Machines Disabled . | . Max in Single Turn . | . Machines Repaired . | . Machines Dismantled . | . Machines Sabotaged . | . Overloaded Fab Kills . | . Hacking | -11 --------- Run | Yrd Machines Accessed . | . Terminals . | . Fabricators . | . Repair Stations . | . Recycling Units . | . Scanalyzers . | . Garrison Access . | . Total Hacks . | . Successful . | . Failed . | . Catastrophic . | . Database Lockouts . | . Manual . | . Terminals . | . Fabricators . | . Repair Stations . | . Recycling Units . | . Scanalyzers . | . Garrison Access . | . Terminal Hacks . | . Fabricator Hacks . | . Repair Station Hacks . | . Recycling Unit Hacks . | . Scanalyzer . | . Garrison Access Hacks . | . Unauthorized Hacks . | . Terminals . | . Fabricators . | . Repair Stations . | . Recycling Units . | . Scanalyzers . | . Garrison Access . | . Data Cores Recovered . | . Used . | . Hacking Detections . | . Full Trace Events . | . Feedback Events . | . Feedback Blocked . | . Robot Schematics Acquired . | . Robots Built . | . Authchips . | . Time . | . Total Robot Build Rating . | . Part Schematics Acquired . | . Parts Built . | . Authchips . | . Time . | . Total Part Build Rating . | . Parts Repaired . | . Time . | . Parts Recycled . | . Recycled Matter . | . Retrieved Matter . | . Retrieved Components . | . Parts Scanalyzed . | . Part Schematics Acquired . | . Parts Damaged . | . Bothacking | -11 ------------ Run | Yrd Used RIF Installer . | . Robots Hacked . | . Non-combat . | . Combat . | . Robot Hacks Applied . | . Relay Couplers Released . | . Fabnet Peak Effective % . | . Robots Rewired . | . Allies Hacked . | . Hacks Repelled . | . Allies | -11 -------- Run | Yrd Total Allies . | . Largest Group . | . Highest-Rated Group . | . Highest-Rated Ally . | . Total Orders . | . Ally Attacks . | . Total Damage . | . Kills . | . Allies Corrupted . | . Allies Melted . | . Intel | -11 ------- Run | Yrd Robot Analysis Total . | . Derelict Logs Recovered . | . Drone Launches . | . Drone Recoveries . | . Exploration | -11 ------------- Run | Yrd Turns Passed 663 | 663 Spaces Moved 146 | 146 Core 6 | 6 Treads . | . Legs 140 | 140 Wheels . | . Hover . | . Flight . | . Fastest Speed 50 | 50 Average Speed 117 | 117 Slowest Speed 120 | 120 Overloaded Moves . | . Propulsion Burnouts . | . Robots Hopped . | . Cave-ins Triggered . | . Exploration Rate (%) 10 | 10 Regions Visited . Branch Regions . Pre-discovered Areas . | . Known Exits Taken . | . Unknown Exits Taken . | . Scrap Searched . | . Spaces Dug 31 | 31 Terrain Destroyed 39 | 39 Melee . | . Projectile 39 | 39 AOE . | . Terrain Rammed . | . Walls Destroyed . | . Machines Disabled . | . Actions | -11 --------- Run | Yrd Total 317 | 317 Wait 76 | 76 Move 146 | 146 Hop . | . Pick Up 9 | 9 Fast Attach . | . Attach 8 | 8 Detach 1 | 1 Swap 3 | 3 Drop . | . Fire 67 | 67 Melee . | . Ram 3 | 3 Kick 4 | 4 Crush . | . Escape Stasis . | . Rewire . | . Trap . | . Miscellaneous . | . Route ------- -11/Scrapyard (discovered 1 exit: [*Mat]) History --------- Turn | Location | Event 4 | -11/Scrapyard | Discovered new exit (range 16) 621 | -11/Scrapyard | Assembled infested the area 660 | -11/Scrapyard | Core integrity fell below 50% 663 | -11/Scrapyard | Core integrity fell below 20% 664 | -11/Scrapyard | Core destroyed Last Messages --------------- as-00753 misfires. as-07758 destroyed. as-00753 destroyed. Med. Laser destroyed. Kicked as-43836 out of the way. Acquired 20 matter. Kicked as-42186. Aluminum Leg destroyed. Kicked as-42186. Aluminum Leg destroyed. Slammed into as-42186. Slammed into as-18933. D-53 Grenadier unfolds itself. Slammed into as-18933. as-75162 destroyed. as-33290 destroyed. as-71374 destroyed. as-60131 destroyed. Slammed into as-64483. Destabilizing: Core damaged (-7). Map ----- +----------------------------------------------------+ | | | | | | | | | | | | | | | | | | | | | ?????????????????????????????????????????????????? | | ?????????????????????????????????????????????????? | | ?????????????????????????????????????????????????? | | ?????????????????????????????????????????????????? | | ???????????????##??????##????????????????????????? | | ???????????????# ####### #?##????????????????????? | | ????????????????# = % " # ##???????????????????? | | ????????????????## ! " #???????????????????? | | ????????????????# dd % #???????????????????? | | ????????????????# ### % a #???????????????????? | | ??????????????### #?# a%a"a #???????????????????? | | ??????????????# #??# a #???????????????????? | | ?????????###### ##??# a ###???????????????????? | | ?????????# # # #???### ##?????????????????????? | | ??????????# # #?????#aa#??????????????????????? | | ???????????# # #?????#a@##?????????????????????? | | ???????????# ##????# #aa#?????????????????????? | | ???????????#### #?????###aa#?????????????????????? | | ????????##????# ##?????# a##?????????????????????? | | ????????# ###### #?????####??????????????????????? | | ?????????# ##???????????????????????????????? | | ?????????# #???????????????????????????????? | | ?????????# #####???????????????????????????????? | | ?????????### #??????????????????????????????????? | | ???????????# ##??????????????????????????????????? | | ??????????## #???????????????????????????????????? | | ??????????# #???????????????????????????????????? | | ??????????## #???????????????????????????????????? | | ???????????# #???????????????????????????????????? | | ???????????# #???????????????????????????????????? | | ?????????### #???????????????????????????????????? | | ?????????# #???????????????????????????????????? | | ?????????# #???????????????????????????????????? | | ?????????## #???????????????????????????????????? | | ?????????### #???????????????????????????????????? | | ?????????# #???????????????????????????????????? | | ?????????### #???????????????????????????????????? | | ??????????## #???????????????????????????????????? | | ??????????## #???????????????????????????????????? | | ???????#### #???????????????????????????????????? | +----------------------------------------------------+ Best States ------------- Heat Dissipation 25 Energy Generation 10 Energy Capacity 125 Matter Stores 190 Matter Capacity 300 Sight Range 16 Terrain Scan Density 10 Evasion (%) 55 Item Schematics ----------------- None Robot Schematics ------------------ None Fabricated ------------ Nothing Alien Tech Used ----------------- None Achievements -------------- Curiosity Killed The Cat Hunted Challenges ------------ None Game ------ Seed ThermalSuperchargedSword Manual? 0 Play Time 00:08:50 Cumulative 11.6 hours Start 2024.04.01 @ 04:31:23 End 2024.04.01 @ 04:35:52 Sessions 0 Manual Loads 0 Difficulty Rogue Special Mode None Game No. 24 Rogue 23 Adventurer 1 Explorer 0 Win Type - Total 0 Types 0/0/0/0/0/0/0/0/0 Lore% 3 Gallery% 16 Achievement% 16 Wizard Run 0 Options --------- Layout 1 ASCII 0 Keyboard 0 Movement Numpad Keybinds 0 Fullscreen 2 Font 24/Terminus Map View 50x35 Zoom Use 0% Tactical HUD 0 Map Filters NONE Filters NONE Steam 1 RUN: 0cb52645-576b-430f-b112-e21c9f83e9a4